[Event "Titled Tuesday Blitz May 23 Late 2023"]
[White "Tomiello, Mateus Costamilan"]
[Black "Wizard_of_Odds"]
[WhiteFideId "22701958"]
[WhiteElo "1990"]
[BlackElo "2444"]
[Result "1-0"]
[Round "07"]
[TimeControl "180+2"]
[Date "2023.05.23"]
[WhiteClock "0:00:29"]
[BlackClock "0:00:17"]

1. e4 {[%clk 0:03:00]}  c5 {[%clk 0:02:59]} 2. Nf3 {[%clk 0:02:59]}  d6 {[%clk 0:02:59]} 3. d4 {[%clk 0:03:00]}  cxd4 {[%clk 0:03:00]} 4. Nxd4 {[%clk 0:03:00]}  Nf6 {[%clk 0:03:00]} 5. Nc3 {[%clk 0:03:01]}  g6 {[%clk 0:03:00]} 6. Be3 {[%clk 0:02:54]}  Bg7 {[%clk 0:03:00]} 7. Be2 {[%clk 0:02:48]}  Nc6 {[%clk 0:02:58]} 8. h3 {[%clk 0:02:44]}  O-O {[%clk 0:02:56]} 9. Qd2 {[%clk 0:02:44]}  d5 {[%clk 0:02:52]} 10. exd5 {[%clk 0:02:36]}  Nxd5 {[%clk 0:02:47]} 11. Nxc6 {[%clk 0:02:30]}  bxc6 {[%clk 0:02:46]} 12. Bd4 {[%clk 0:02:26]}  Bxd4 {[%clk 0:02:43]} 13. Qxd4 {[%clk 0:02:26]}  Qb6 {[%clk 0:02:42]} 14. Qxb6 {[%clk 0:02:25]}  axb6 {[%clk 0:02:30]} 15. Nxd5 {[%clk 0:02:24]}  cxd5 {[%clk 0:02:31]} 16. O-O {[%clk 0:02:24]}  e5 {[%clk 0:02:29]} 17. Rfd1 {[%clk 0:02:17]}  Be6 {[%clk 0:02:28]} 18. c3 {[%clk 0:02:15]}  Rfc8 {[%clk 0:02:21]} 19. Bb5 {[%clk 0:02:11]}  Kf8 {[%clk 0:02:17]} 20. a4 {[%clk 0:02:08]}  Ke7 {[%clk 0:02:16]} 21. f3 {[%clk 0:02:03]}  g5 {[%clk 0:02:13]} 22. Kf2 {[%clk 0:02:03]}  h5 {[%clk 0:02:11]} 23. h4 {[%clk 0:01:57]}  f6 {[%clk 0:02:06]} 24. Rh1 {[%clk 0:01:53]}  g4 {[%clk 0:02:03]} 25. Rhd1 {[%clk 0:01:48]}  gxf3 {[%clk 0:02:00]} 26. gxf3 {[%clk 0:01:49]}  Kd6 {[%clk 0:01:51]} 27. Rg1 {[%clk 0:01:48]}  Rg8 {[%clk 0:01:51]} 28. Ke3 {[%clk 0:01:44]}  Kc5 {[%clk 0:01:48]} 29. Rad1 {[%clk 0:01:37]}  Rxg1 {[%clk 0:01:40]} 30. Rxg1 {[%clk 0:01:36]}  d4+ {[%clk 0:01:40]} 31. Kd2 {[%clk 0:01:34]}  Bd5 {[%clk 0:01:27]} 32. Rg6 {[%clk 0:01:31]}  Rf8 {[%clk 0:01:27]} 33. b4+ {[%clk 0:01:25]}  Kd6 {[%clk 0:01:26]} 34. cxd4 {[%clk 0:01:24]}  exd4 {[%clk 0:01:27]} 35. Kd3 {[%clk 0:01:21]}  Ke5 {[%clk 0:01:25]} 36. f4+ {[%clk 0:01:16]}  Kf5 {[%clk 0:01:15]} 37. Rg7 {[%clk 0:01:16]}  Rd8 {[%clk 0:01:14]} 38. Rd7 {[%clk 0:01:11]}  Rxd7 {[%clk 0:01:10]} 39. Bxd7+ {[%clk 0:01:11]}  Kxf4 {[%clk 0:01:11]} 40. Kxd4 {[%clk 0:01:12]}  Bb7 {[%clk 0:01:00]} 41. Kc4 {[%clk 0:01:02]}  Ba6+ {[%clk 0:00:54]} 42. Kd5 {[%clk 0:00:56]}  Bd3 {[%clk 0:00:38]} 43. Kc6 {[%clk 0:00:53]}  b5 {[%clk 0:00:38]} 44. a5 {[%clk 0:00:51]}  Kg3 {[%clk 0:00:27]} 45. a6 {[%clk 0:00:48]}  Be4+ {[%clk 0:00:26]} 46. Kb6 {[%clk 0:00:48]}  f5 {[%clk 0:00:21]} 47. Bc6 {[%clk 0:00:46]}  Bxc6 {[%clk 0:00:19]} 48. Kxc6 {[%clk 0:00:47]}  f4 {[%clk 0:00:19]} 49. a7 {[%clk 0:00:47]}  f3 {[%clk 0:00:20]} 50. a8=Q {[%clk 0:00:48]}  f2 {[%clk 0:00:20]} 51. Qg8+ {[%clk 0:00:45]}  Kh2 {[%clk 0:00:17]} 52. Qf7 {[%clk 0:00:44]}  Kg2 {[%clk 0:00:16]} 53. Qg6+ {[%clk 0:00:44]}  Kh2 {[%clk 0:00:16]} 54. Qf5 {[%clk 0:00:44]}  Kg2 {[%clk 0:00:16]} 55. Qg5+ {[%clk 0:00:45]}  Kh2 {[%clk 0:00:16]} 56. Qf4+ {[%clk 0:00:45]}  Kg2 {[%clk 0:00:16]} 57. Kxb5 {[%clk 0:00:28]}  f1=Q+ {[%clk 0:00:15]} 58. Qxf1+ {[%clk 0:00:29]}  Kxf1 {[%clk 0:00:16]} 59. Kc4 {[%clk 0:00:26]}  Kg2 {[%clk 0:00:17]} 60. b5 {[%clk 0:00:27]}  Kg3 {[%clk 0:00:17]} 61. b6 {[%clk 0:00:28]}  Kxh4 {[%clk 0:00:17]} 62. b7 {[%clk 0:00:29]}  Kh3 {[%clk 0:00:17]} 63. b8=Q {[%clk 0:00:29]}  h4 {[%clk 0:00:18]} 64. Kd3 {[%clk 0:00:29]}  Kg2 {[%clk 0:00:18]} 65. Ke2 {[%clk 0:00:29]}  h3 {[%clk 0:00:18]} 66. Qg8+ {[%clk 0:00:30]}  Kh1 {[%clk 0:00:17]} 67. Kf2 {[%clk 0:00:30]}  h2 {[%clk 0:00:17]} 68. Qg2# {[%clk 0:00:29]} 1-0


[Site "https://www.chess.com"]

[Event "Titled Tuesday Blitz May 23 Late 2023"]
[White "Mackster23"]
[Black "Kiremitciyan, Ari"]
[BlackFideId "6373445"]
[WhiteElo "2442"]
[BlackElo "2181"]
[Result "1-0"]
[Round "07"]
[TimeControl "180+2"]
[Date "2023.05.23"]
[WhiteClock "0:00:03"]
[BlackClock "0:00:00"]

1. e4 {[%clk 0:02:56]}  e5 {[%clk 0:02:59]} 2. Nf3 {[%clk 0:02:55]}  Nc6 {[%clk 0:02:59]} 3. Bc4 {[%clk 0:02:55]}  g6 {[%clk 0:03:00]} 4. d4 {[%clk 0:02:54]}  exd4 {[%clk 0:03:00]} 5. c3 {[%clk 0:02:54]}  dxc3 {[%clk 0:02:55]} 6. Nxc3 {[%clk 0:02:55]}  Bg7 {[%clk 0:02:54]} 7. Bg5 {[%clk 0:02:46]}  Nce7 {[%clk 0:02:44]} 8. Qb3 {[%clk 0:02:35]}  f6 {[%clk 0:02:30]} 9. Bf4 {[%clk 0:02:29]}  d6 {[%clk 0:02:27]} 10. O-O-O {[%clk 0:02:25]}  Bh6 {[%clk 0:02:15]} 11. Bxh6 {[%clk 0:02:13]}  Nxh6 {[%clk 0:02:16]} 12. e5 {[%clk 0:02:14]}  fxe5 {[%clk 0:02:03]} 13. Nxe5 {[%clk 0:02:12]}  Kf8 {[%clk 0:01:41]} 14. Ne4 {[%clk 0:01:55]}  Nc6 {[%clk 0:01:27]} 15. Nxc6 {[%clk 0:01:21]}  bxc6 {[%clk 0:01:28]} 16. Qc3 {[%clk 0:01:20]}  Nf7 {[%clk 0:01:26]} 17. Bxf7 {[%clk 0:00:54]}  Kxf7 {[%clk 0:01:27]} 18. Qxc6 {[%clk 0:00:54]}  Bf5 {[%clk 0:01:15]} 19. Qd5+ {[%clk 0:00:52]}  Kg7 {[%clk 0:01:04]} 20. Rhe1 {[%clk 0:00:47]}  Re8 {[%clk 0:00:57]} 21. f4 {[%clk 0:00:30]}  Qe7 {[%clk 0:00:44]} 22. Ng3 {[%clk 0:00:16]}  Qxe1 {[%clk 0:00:31]} 23. Nxf5+ {[%clk 0:00:15]}  gxf5 {[%clk 0:00:30]} 24. Rxe1 {[%clk 0:00:16]}  Rxe1+ {[%clk 0:00:30]} 25. Kd2 {[%clk 0:00:16]}  Rae8 {[%clk 0:00:28]} 26. Qxf5 {[%clk 0:00:15]}  R1e2+ {[%clk 0:00:23]} 27. Kd3 {[%clk 0:00:13]}  Rxg2 {[%clk 0:00:14]} 28. Qd7+ {[%clk 0:00:10]}  Kf8 {[%clk 0:00:14]} 29. Qxc7 {[%clk 0:00:09]}  Rxh2 {[%clk 0:00:08]} 30. Qxd6+ {[%clk 0:00:08]}  Kg8 {[%clk 0:00:07]} 31. Qd5+ {[%clk 0:00:08]}  Kf8 {[%clk 0:00:06]} 32. Qc5+ {[%clk 0:00:07]}  Kf7 {[%clk 0:00:05]} 33. Qc7+ {[%clk 0:00:06]}  Re7 {[%clk 0:00:04]} 34. Qc4+ {[%clk 0:00:06]}  Kf8 {[%clk 0:00:03]} 35. Qc8+ {[%clk 0:00:06]}  Kf7 {[%clk 0:00:04]} 36. Qf5+ {[%clk 0:00:04]}  Ke8 {[%clk 0:00:03]} 37. Qb5+ {[%clk 0:00:02]}  Kf7 {[%clk 0:00:03]} 38. a4 {[%clk 0:00:03]}  Rh6 {[%clk 0:00:02]} 39. Qf5+ {[%clk 0:00:02]}  Kg7 {[%clk 0:00:00]} 40. Qg5+ {[%clk 0:00:03]} 1-0


[Site "https://www.chess.com"]

[Event "Titled Tuesday Blitz May 23 Late 2023"]
[White "Vadim_Galchenko"]
[Black "Chylewski, Patryk"]
[BlackFideId "1186191"]
[WhiteElo "2415"]
[BlackElo "2163"]
[Result "1-0"]
[Round "07"]
[TimeControl "180+2"]
[Date "2023.05.23"]
[WhiteClock "0:00:36"]
[BlackClock "0:00:28"]

1. e4 {[%clk 0:03:00]}  c6 {[%clk 0:02:59]} 2. c4 {[%clk 0:03:00]}  d5 {[%clk 0:02:59]} 3. exd5 {[%clk 0:03:01]}  cxd5 {[%clk 0:03:00]} 4. cxd5 {[%clk 0:03:02]}  Nf6 {[%clk 0:03:00]} 5. Bb5+ {[%clk 0:03:01]}  Nbd7 {[%clk 0:02:58]} 6. Nc3 {[%clk 0:02:58]}  g6 {[%clk 0:02:57]} 7. Nf3 {[%clk 0:02:58]}  Bg7 {[%clk 0:02:57]} 8. d6 {[%clk 0:02:58]}  e6 {[%clk 0:02:49]} 9. O-O {[%clk 0:02:57]}  O-O {[%clk 0:02:50]} 10. d4 {[%clk 0:02:58]}  a6 {[%clk 0:02:47]} 11. Be2 {[%clk 0:02:55]}  Nb6 {[%clk 0:02:42]} 12. Bf4 {[%clk 0:02:55]}  Nbd5 {[%clk 0:02:38]} 13. Be5 {[%clk 0:02:50]}  b5 {[%clk 0:02:37]} 14. a4 {[%clk 0:02:25]}  b4 {[%clk 0:02:35]} 15. Nxd5 {[%clk 0:02:25]}  Nxd5 {[%clk 0:02:34]} 16. Rc1 {[%clk 0:02:26]}  Bb7 {[%clk 0:02:34]} 17. Qd2 {[%clk 0:02:16]}  a5 {[%clk 0:02:30]} 18. Rc5 {[%clk 0:02:15]}  f6 {[%clk 0:02:15]} 19. Bg3 {[%clk 0:02:13]}  Re8 {[%clk 0:02:12]} 20. Bb5 {[%clk 0:02:10]}  Rf8 {[%clk 0:02:10]} 21. Rfc1 {[%clk 0:02:09]}  Rf7 {[%clk 0:02:09]} 22. d7 {[%clk 0:01:52]}  Bf8 {[%clk 0:02:05]} 23. R5c2 {[%clk 0:01:42]}  Rxd7 {[%clk 0:02:04]} 24. Bxd7 {[%clk 0:01:41]}  Qxd7 {[%clk 0:02:05]} 25. Ne1 {[%clk 0:01:34]}  Qxa4 {[%clk 0:02:04]} 26. Nd3 {[%clk 0:01:34]}  Qb5 {[%clk 0:01:35]} 27. Nc5 {[%clk 0:01:29]}  Bc8 {[%clk 0:01:36]} 28. b3 {[%clk 0:01:28]}  Nc3 {[%clk 0:01:32]} 29. Qe3 {[%clk 0:01:09]}  Qc6 {[%clk 0:01:29]} 30. Rxc3 {[%clk 0:01:04]}  bxc3 {[%clk 0:01:28]} 31. Rxc3 {[%clk 0:01:05]}  Qd5 {[%clk 0:01:24]} 32. Ne4 {[%clk 0:01:02]}  Bg7 {[%clk 0:01:18]} 33. Rc7 {[%clk 0:01:00]}  Bb7 {[%clk 0:01:10]} 34. f3 {[%clk 0:00:58]}  f5 {[%clk 0:01:10]} 35. Rxg7+ {[%clk 0:00:53]}  Kxg7 {[%clk 0:01:11]} 36. Be5+ {[%clk 0:00:53]}  Kf7 {[%clk 0:00:57]} 37. Nd6+ {[%clk 0:00:41]}  Ke7 {[%clk 0:00:49]} 38. Qh6 {[%clk 0:00:41]}  Bc6 {[%clk 0:00:28]} 39. Qg7+ {[%clk 0:00:36]}  Kd8 {[%clk 0:00:28]} 40. Bf6# {[%clk 0:00:36]} 1-0


[Site "https://www.chess.com"]

[Event "Titled Tuesday Blitz May 23 Late 2023"]
[White "FoxOnTheRun97"]
[Black "Prydun, Andriy"]
[BlackFideId "14145898"]
[WhiteElo "2557"]
[BlackElo "2164"]
[Result "1-0"]
[Round "07"]
[TimeControl "180+2"]
[Date "2023.05.23"]
[WhiteClock "0:00:20"]
[BlackClock "0:00:31"]

1. d4 {[%clk 0:02:59]}  Nf6 {[%clk 0:02:59]} 2. Bg5 {[%clk 0:02:59]}  Ne4 {[%clk 0:02:58]} 3. h4 {[%clk 0:02:58]}  d5 {[%clk 0:02:59]} 4. Nd2 {[%clk 0:02:58]}  Nd6 {[%clk 0:03:00]} 5. e3 {[%clk 0:02:56]}  c6 {[%clk 0:02:59]} 6. Ngf3 {[%clk 0:02:53]}  Nd7 {[%clk 0:03:00]} 7. Bd3 {[%clk 0:02:50]}  Nf6 {[%clk 0:02:53]} 8. Bxf6 {[%clk 0:02:46]}  exf6 {[%clk 0:02:53]} 9. c4 {[%clk 0:02:43]}  dxc4 {[%clk 0:02:51]} 10. Nxc4 {[%clk 0:02:44]}  Be7 {[%clk 0:02:50]} 11. Qc2 {[%clk 0:02:32]}  h6 {[%clk 0:02:49]} 12. O-O {[%clk 0:02:22]}  O-O {[%clk 0:02:45]} 13. Nxd6 {[%clk 0:02:09]}  Bxd6 {[%clk 0:02:44]} 14. Bf5 {[%clk 0:02:10]}  Bc7 {[%clk 0:02:32]} 15. Rfd1 {[%clk 0:02:01]}  Qd5 {[%clk 0:02:31]} 16. Bxc8 {[%clk 0:01:47]}  Raxc8 {[%clk 0:02:30]} 17. Qc5 {[%clk 0:01:48]}  Qxc5 {[%clk 0:02:26]} 18. dxc5 {[%clk 0:01:49]}  Rfd8 {[%clk 0:02:26]} 19. Kf1 {[%clk 0:01:47]}  Kf8 {[%clk 0:02:22]} 20. Ke2 {[%clk 0:01:46]}  h5 {[%clk 0:02:22]} 21. g3 {[%clk 0:01:41]}  g6 {[%clk 0:02:22]} 22. b4 {[%clk 0:01:25]}  Ke7 {[%clk 0:02:22]} 23. Rxd8 {[%clk 0:01:18]}  Rxd8 {[%clk 0:02:21]} 24. Rd1 {[%clk 0:01:18]}  Rxd1 {[%clk 0:02:01]} 25. Kxd1 {[%clk 0:01:19]}  Ke6 {[%clk 0:02:01]} 26. Ke2 {[%clk 0:01:19]}  a5 {[%clk 0:01:57]} 27. a3 {[%clk 0:01:18]}  axb4 {[%clk 0:01:56]} 28. axb4 {[%clk 0:01:19]}  Bd8 {[%clk 0:01:42]} 29. Kd3 {[%clk 0:01:14]}  f5 {[%clk 0:01:42]} 30. Kc4 {[%clk 0:01:08]}  Bf6 {[%clk 0:01:39]} 31. b5 {[%clk 0:00:58]}  Kd7 {[%clk 0:01:38]} 32. b6 {[%clk 0:00:51]}  Ke6 {[%clk 0:01:33]} 33. Nd2 {[%clk 0:00:44]}  Ke5 {[%clk 0:01:03]} 34. Nb3 {[%clk 0:00:30]}  Ke4 {[%clk 0:00:36]} 35. Na5 {[%clk 0:00:29]}  Be5 {[%clk 0:00:37]} 36. Nxb7 {[%clk 0:00:28]}  Bb8 {[%clk 0:00:36]} 37. Nd8 {[%clk 0:00:19]}  Kf3 {[%clk 0:00:31]} 38. Nxc6 {[%clk 0:00:20]} 1-0


[Site "https://www.chess.com"]

[Event "Titled Tuesday Blitz May 23 Late 2023"]
[White "OPQRC"]
[Black "Gatterer, Florian"]
[BlackFideId "811688"]
[WhiteElo "2544"]
[BlackElo "2221"]
[Result "1-0"]
[Round "07"]
[TimeControl "180+2"]
[Date "2023.05.23"]
[WhiteClock "0:00:55"]
[BlackClock "0:00:00"]

1. e4 {[%clk 0:02:56]}  c5 {[%clk 0:02:58]} 2. Nf3 {[%clk 0:02:55]}  e6 {[%clk 0:02:59]} 3. b3 {[%clk 0:02:54]}  b6 {[%clk 0:02:58]} 4. Bb2 {[%clk 0:02:54]}  Bb7 {[%clk 0:02:59]} 5. d3 {[%clk 0:02:54]}  Nf6 {[%clk 0:02:58]} 6. Nbd2 {[%clk 0:02:54]}  Be7 {[%clk 0:02:59]} 7. g3 {[%clk 0:02:54]}  d5 {[%clk 0:02:59]} 8. Qe2 {[%clk 0:02:53]}  Nc6 {[%clk 0:02:55]} 9. Bg2 {[%clk 0:02:53]}  O-O {[%clk 0:02:54]} 10. O-O {[%clk 0:02:53]}  a5 {[%clk 0:02:55]} 11. a4 {[%clk 0:02:52]}  Nb4 {[%clk 0:02:49]} 12. Rac1 {[%clk 0:02:51]}  Rc8 {[%clk 0:02:47]} 13. e5 {[%clk 0:02:43]}  Nd7 {[%clk 0:02:47]} 14. c3 {[%clk 0:02:43]}  Nc6 {[%clk 0:02:41]} 15. Rfe1 {[%clk 0:02:43]}  Ba6 {[%clk 0:02:39]} 16. Nf1 {[%clk 0:02:36]}  Re8 {[%clk 0:02:40]} 17. h4 {[%clk 0:02:36]}  b5 {[%clk 0:02:37]} 18. axb5 {[%clk 0:02:31]}  Bxb5 {[%clk 0:02:38]} 19. h5 {[%clk 0:02:31]}  h6 {[%clk 0:02:37]} 20. N1h2 {[%clk 0:02:30]}  Bf8 {[%clk 0:02:38]} 21. Ng4 {[%clk 0:02:23]}  a4 {[%clk 0:02:37]} 22. bxa4 {[%clk 0:02:23]}  Bxa4 {[%clk 0:02:37]} 23. Qe3 {[%clk 0:02:08]}  Rb8 {[%clk 0:02:33]} 24. Ba1 {[%clk 0:02:03]}  Qc7 {[%clk 0:02:13]} 25. Qf4 {[%clk 0:02:01]}  Bb5 {[%clk 0:02:09]} 26. c4 {[%clk 0:01:55]}  dxc4 {[%clk 0:02:10]} 27. dxc4 {[%clk 0:01:56]}  Ba6 {[%clk 0:02:10]} 28. Rcd1 {[%clk 0:01:54]}  Red8 {[%clk 0:02:02]} 29. Bc3 {[%clk 0:01:52]}  Nb6 {[%clk 0:01:55]} 30. Rxd8 {[%clk 0:01:35]}  Rxd8 {[%clk 0:01:52]} 31. Ng5 {[%clk 0:01:29]}  Nd4 {[%clk 0:01:27]} 32. Be4 {[%clk 0:01:14]}  hxg5 {[%clk 0:01:18]} 33. Qxg5 {[%clk 0:01:14]}  Qe7 {[%clk 0:01:18]} 34. Nf6+ {[%clk 0:01:14]}  Kh8 {[%clk 0:01:18]} 35. h6 {[%clk 0:01:02]}  gxf6 {[%clk 0:01:09]} 36. exf6 {[%clk 0:01:03]}  Qc7 {[%clk 0:00:52]} 37. h7 {[%clk 0:01:00]}  Nf3+ {[%clk 0:00:10]} 38. Bxf3 {[%clk 0:01:00]}  Kxh7 {[%clk 0:00:00]} 39. Kg2 {[%clk 0:00:55]} 1-0


[Site "https://www.chess.com"]

[Event "Titled Tuesday Blitz May 23 Late 2023"]
[White "Zaitsev, Alexander"]
[Black "Chos, Alexey"]
[WhiteFideId "4164490"]
[BlackFideId "14117762"]
[WhiteElo "2373"]
[BlackElo "2234"]
[Result "1-0"]
[Round "07"]
[TimeControl "180+2"]
[Date "2023.05.23"]
[WhiteClock "0:01:04"]
[BlackClock "0:00:23"]

1. e4 {[%clk 0:03:00]}  e5 {[%clk 0:02:52]} 2. Nc3 {[%clk 0:03:00]}  Nf6 {[%clk 0:02:51]} 3. Bc4 {[%clk 0:03:00]}  Nxe4 {[%clk 0:02:49]} 4. Qh5 {[%clk 0:03:00]}  Nd6 {[%clk 0:02:45]} 5. Qxe5+ {[%clk 0:03:01]}  Qe7 {[%clk 0:02:42]} 6. Qxe7+ {[%clk 0:03:01]}  Bxe7 {[%clk 0:02:43]} 7. Bb3 {[%clk 0:03:02]}  O-O {[%clk 0:02:42]} 8. Nf3 {[%clk 0:03:02]}  c6 {[%clk 0:02:40]} 9. d4 {[%clk 0:03:02]}  Nf5 {[%clk 0:02:39]} 10. d5 {[%clk 0:03:03]}  Na6 {[%clk 0:02:36]} 11. Bf4 {[%clk 0:02:57]}  Nc5 {[%clk 0:02:36]} 12. O-O-O {[%clk 0:02:55]}  Bf6 {[%clk 0:02:34]} 13. g4 {[%clk 0:02:50]}  Ne7 {[%clk 0:02:24]} 14. Bd6 {[%clk 0:02:41]}  Nxb3+ {[%clk 0:02:19]} 15. axb3 {[%clk 0:02:42]}  Re8 {[%clk 0:02:11]} 16. Rhe1 {[%clk 0:02:30]}  h6 {[%clk 0:01:36]} 17. h4 {[%clk 0:02:29]}  g5 {[%clk 0:01:17]} 18. hxg5 {[%clk 0:02:29]}  hxg5 {[%clk 0:01:17]} 19. Ne4 {[%clk 0:02:29]}  Kg7 {[%clk 0:01:15]} 20. Nxf6 {[%clk 0:02:21]}  Kxf6 {[%clk 0:01:16]} 21. Rd3 {[%clk 0:01:23]}  b6 {[%clk 0:00:54]} 22. Rde3 {[%clk 0:01:21]}  Bb7 {[%clk 0:00:48]} 23. Bxe7+ {[%clk 0:01:20]}  Kg6 {[%clk 0:00:46]} 24. Ne5+ {[%clk 0:01:11]}  Kg7 {[%clk 0:00:45]} 25. Nxd7 {[%clk 0:01:07]}  Kg6 {[%clk 0:00:32]} 26. dxc6 {[%clk 0:01:04]}  Bxc6 {[%clk 0:00:23]} 27. Ne5+ {[%clk 0:01:04]} 1-0


[Site "https://www.chess.com"]

[Event "Titled Tuesday Blitz May 23 Late 2023"]
[White "Musovic, Armin"]
[Black "Qiao, Cindy"]
[WhiteFideId "939935"]
[BlackFideId "2620243"]
[WhiteElo "2322"]
[BlackElo "1777"]
[Result "1-0"]
[Round "07"]
[TimeControl "180+2"]
[Date "2023.05.23"]
[WhiteClock "0:00:06"]
[BlackClock "0:00:45"]

1. a3 {[%clk 0:02:58]}  d5 {[%clk 0:02:59]} 2. d4 {[%clk 0:02:55]}  Nf6 {[%clk 0:02:59]} 3. Nf3 {[%clk 0:02:55]}  Bf5 {[%clk 0:02:58]} 4. c4 {[%clk 0:02:55]}  e6 {[%clk 0:02:58]} 5. Nc3 {[%clk 0:02:55]}  c6 {[%clk 0:02:58]} 6. g3 {[%clk 0:02:55]}  Nbd7 {[%clk 0:02:58]} 7. Bg2 {[%clk 0:02:56]}  Be7 {[%clk 0:02:57]} 8. Nh4 {[%clk 0:02:56]}  Bg4 {[%clk 0:02:56]} 9. h3 {[%clk 0:02:55]}  Bh5 {[%clk 0:02:56]} 10. g4 {[%clk 0:02:56]}  Bg6 {[%clk 0:02:56]} 11. O-O {[%clk 0:02:57]}  dxc4 {[%clk 0:02:55]} 12. Nxg6 {[%clk 0:02:57]}  hxg6 {[%clk 0:02:55]} 13. e4 {[%clk 0:02:57]}  b5 {[%clk 0:02:54]} 14. g5 {[%clk 0:02:52]}  Nh5 {[%clk 0:02:52]} 15. h4 {[%clk 0:02:52]}  Qc7 {[%clk 0:02:48]} 16. Qg4 {[%clk 0:02:36]}  Nb6 {[%clk 0:02:39]} 17. Be3 {[%clk 0:02:25]}  Rd8 {[%clk 0:02:35]} 18. Rad1 {[%clk 0:02:25]}  O-O {[%clk 0:02:21]} 19. f4 {[%clk 0:02:14]}  a5 {[%clk 0:02:08]} 20. Rf3 {[%clk 0:01:52]}  b4 {[%clk 0:02:05]} 21. axb4 {[%clk 0:01:52]}  axb4 {[%clk 0:02:06]} 22. Ne2 {[%clk 0:01:53]}  c5 {[%clk 0:02:04]} 23. f5 {[%clk 0:01:44]}  exf5 {[%clk 0:02:02]} 24. exf5 {[%clk 0:01:42]}  cxd4 {[%clk 0:02:00]} 25. Nxd4 {[%clk 0:01:41]}  Bc5 {[%clk 0:01:59]} 26. fxg6 {[%clk 0:01:41]}  fxg6 {[%clk 0:01:59]} 27. Qe6+ {[%clk 0:01:12]}  Kh7 {[%clk 0:01:50]} 28. Rxf8 {[%clk 0:01:11]}  Rxf8 {[%clk 0:01:51]} 29. Rf1 {[%clk 0:00:23]}  Rxf1+ {[%clk 0:01:46]} 30. Kxf1 {[%clk 0:00:24]}  Ng3+ {[%clk 0:01:45]} 31. Kf2 {[%clk 0:00:20]}  Nd7 {[%clk 0:01:29]} 32. Bd5 {[%clk 0:00:13]}  Nh1+ {[%clk 0:01:01]} 33. Kg1 {[%clk 0:00:08]}  Qc8 {[%clk 0:00:56]} 34. Kxh1 {[%clk 0:00:07]}  c3 {[%clk 0:00:53]} 35. Be4 {[%clk 0:00:06]}  Bxd4 {[%clk 0:00:46]} 36. Qxg6+ {[%clk 0:00:06]}  Kh8 {[%clk 0:00:45]} 37. Qh7# {[%clk 0:00:06]} 1-0


[Site "https://www.chess.com"]

[Event "Titled Tuesday Blitz May 23 Late 2023"]
[White "KorolDimitriy75"]
[Black "Martic, Ivan"]
[BlackFideId "929301"]
[WhiteElo "2397"]
[BlackElo "2360"]
[Result "1/2-1/2"]
[Round "07"]
[TimeControl "180+2"]
[Date "2023.05.23"]
[WhiteClock "0:00:04"]
[BlackClock "0:00:26"]

1. d4 {[%clk 0:03:00]}  d5 {[%clk 0:02:56]} 2. c4 {[%clk 0:03:00]}  c6 {[%clk 0:02:55]} 3. Nc3 {[%clk 0:03:01]}  Nf6 {[%clk 0:02:55]} 4. e3 {[%clk 0:03:01]}  a6 {[%clk 0:02:52]} 5. Nf3 {[%clk 0:03:01]}  Bf5 {[%clk 0:02:51]} 6. Bd3 {[%clk 0:03:01]}  Bxd3 {[%clk 0:02:49]} 7. Qxd3 {[%clk 0:03:02]}  e6 {[%clk 0:02:50]} 8. O-O {[%clk 0:03:02]}  Nbd7 {[%clk 0:02:49]} 9. e4 {[%clk 0:03:02]}  dxe4 {[%clk 0:02:44]} 10. Nxe4 {[%clk 0:03:03]}  Nxe4 {[%clk 0:02:42]} 11. Qxe4 {[%clk 0:03:04]}  Nf6 {[%clk 0:02:42]} 12. Qe2 {[%clk 0:03:04]}  Be7 {[%clk 0:02:43]} 13. Bg5 {[%clk 0:03:05]}  O-O {[%clk 0:02:42]} 14. Rad1 {[%clk 0:03:04]}  b5 {[%clk 0:02:40]} 15. b3 {[%clk 0:03:00]}  bxc4 {[%clk 0:02:40]} 16. bxc4 {[%clk 0:02:59]}  Re8 {[%clk 0:02:33]} 17. Ne5 {[%clk 0:02:55]}  Qc7 {[%clk 0:02:32]} 18. c5 {[%clk 0:02:33]}  Nd5 {[%clk 0:02:24]} 19. Bxe7 {[%clk 0:02:22]}  Rxe7 {[%clk 0:02:25]} 20. Qf3 {[%clk 0:01:48]}  Rb8 {[%clk 0:02:19]} 21. Rb1 {[%clk 0:01:42]}  Ree8 {[%clk 0:02:18]} 22. g3 {[%clk 0:01:27]}  Rb5 {[%clk 0:02:13]} 23. a4 {[%clk 0:01:21]}  Rb4 {[%clk 0:02:09]} 24. Rxb4 {[%clk 0:01:19]}  Nxb4 {[%clk 0:02:10]} 25. Rb1 {[%clk 0:01:17]}  a5 {[%clk 0:02:09]} 26. h4 {[%clk 0:01:00]}  Rd8 {[%clk 0:02:02]} 27. Qe4 {[%clk 0:00:53]}  f6 {[%clk 0:01:55]} 28. Nc4 {[%clk 0:00:49]}  Qd7 {[%clk 0:01:42]} 29. Nd6 {[%clk 0:00:48]}  Rf8 {[%clk 0:01:26]} 30. Re1 {[%clk 0:00:47]}  h5 {[%clk 0:01:16]} 31. Qxe6+ {[%clk 0:00:42]}  Qxe6 {[%clk 0:01:17]} 32. Rxe6 {[%clk 0:00:42]}  Nc2 {[%clk 0:01:18]} 33. Nf5 {[%clk 0:00:42]}  g6 {[%clk 0:01:11]} 34. Ne3 {[%clk 0:00:20]}  Nxd4 {[%clk 0:01:10]} 35. Rd6 {[%clk 0:00:20]}  Nf3+ {[%clk 0:01:04]} 36. Kg2 {[%clk 0:00:19]}  Ne5 {[%clk 0:01:05]} 37. f4 {[%clk 0:00:18]}  Nf7 {[%clk 0:01:04]} 38. Rxf6 {[%clk 0:00:17]}  Kg7 {[%clk 0:01:03]} 39. Rxc6 {[%clk 0:00:16]}  Rd8 {[%clk 0:01:01]} 40. Kf3 {[%clk 0:00:15]}  Rd3 {[%clk 0:01:01]} 41. Rc7 {[%clk 0:00:15]}  Kf8 {[%clk 0:01:00]} 42. Ke4 {[%clk 0:00:15]}  Ra3 {[%clk 0:00:58]} 43. c6 {[%clk 0:00:09]}  Rxa4+ {[%clk 0:00:58]} 44. Kd5 {[%clk 0:00:09]}  Ra3 {[%clk 0:00:57]} 45. Nc4 {[%clk 0:00:08]}  Rxg3 {[%clk 0:00:51]} 46. Rc8+ {[%clk 0:00:08]}  Ke7 {[%clk 0:00:51]} 47. c7 {[%clk 0:00:08]}  Rd3+ {[%clk 0:00:47]} 48. Kc6 {[%clk 0:00:05]}  Rc3 {[%clk 0:00:46]} 49. Re8+ {[%clk 0:00:04]}  Kf6 {[%clk 0:00:44]} 50. c8=Q {[%clk 0:00:04]}  Rxc4+ {[%clk 0:00:44]} 51. Kd5 {[%clk 0:00:02]}  Rxc8 {[%clk 0:00:42]} 52. Rxc8 {[%clk 0:00:03]}  Kf5 {[%clk 0:00:43]} 53. Rf8 {[%clk 0:00:03]}  Kf6 {[%clk 0:00:43]} 54. Ra8 {[%clk 0:00:02]}  Nh6 {[%clk 0:00:42]} 55. Rxa5 {[%clk 0:00:01]}  Nf5 {[%clk 0:00:42]} 56. Ra6+ {[%clk 0:00:01]}  Kg7 {[%clk 0:00:42]} 57. Ke5 {[%clk 0:00:02]}  Nxh4 {[%clk 0:00:42]} 58. Ra7+ {[%clk 0:00:02]}  Kh6 {[%clk 0:00:43]} 59. Ra6 {[%clk 0:00:03]}  Nf5 {[%clk 0:00:42]} 60. Kf6 {[%clk 0:00:03]}  Nh4 {[%clk 0:00:26]} 61. Ra8 {[%clk 0:00:03]}  Kh7 {[%clk 0:00:25]} 62. Ra7+ {[%clk 0:00:03]}  Kh6 {[%clk 0:00:26]} 63. Ra8 {[%clk 0:00:03]}  Kh7 {[%clk 0:00:26]} 64. Ra7+ {[%clk 0:00:04]}  Kh6 {[%clk 0:00:26]} 65. Ra8 {[%clk 0:00:04]} 1/2-1/2


[Site "https://www.chess.com"]